Cogmind - Beta 16 @@@ ROGUE MODE // 2025.11.03 @ 20:49:21 Player: Tape Result: Destroyed by S-10 Pest with Light Assault Rifle Performance ------------- Evolutions (0) 0 Regions Visited (2) 400 Robots Destroyed (44) 220 Value Destroyed (799) 799 Prototype IDs (0) 0 Alien Tech Used (0) 0 Bonus (0) 0 TOTAL SCORE: 1419 Bonus ------- None Cogmind --------- Core Integrity 0/250 Matter 214/300 Energy 265/265 System Corruption 0% Temperature Cool (90) Movement Treading (160) Location -10/Mines Parts ------- > --- POWER (1) -------- Improved Ion Engine > --- PROPULSION (2) --- Light Treads Light Treads > --- UTILITY (2) ------ Improved Heat Sink Large Storage Unit > --- WEAPON (2) ------- Particle Gun Particle Gun > --- INVENTORY (15) --- Improved Ion Engine Wheel Compact Wheel Heat Sink Small Storage Unit Large Matter Pod (150) Seismic Detector Targeting Computer Hardened Light Armor Plating Hardened Light Armor Plating Medium Laser Medium Laser Particle Gun Particle Gun Mining Laser Peak State ------------ > --- POWER ------------ Improved Ion Engine > --- PROPULSION ------- Light Treads Light Treads > --- UTILITY ---------- Improved Heat Sink Large Storage Unit > --- WEAPON ----------- Particle Gun Particle Gun > --- INVENTORY -------- Improved Ion Engine Wheel Compact Wheel Heat Sink Small Storage Unit Large Matter Pod Seismic Detector Targeting Computer Hardened Light Armor Plating Hardened Light Armor Plating Medium Laser Medium Laser Particle Gun Particle Gun Mining Laser [Rating: 14] Favorites ----------- Power Improved Ion Engine Engine Improved Ion Engine Propulsion Light Treads Treads Light Treads Wheel Compact Wheel Utility Large Storage Unit Device Heat Sink Storage Large Storage Unit Weapon Particle Gun Energy Gun Particle Gun Energy Cannon Beam Cannon Ballistic Gun Light Assault Rifle Special Weapon Welding Torch Build | -11 -10 -10 ------- Run | Yrd Mat Min Slots Evolved . | . . . Power . | . . . Propulsion . | . . . Utility . | . . . Weapon . | . . . Parts Attached 27 | 8 18 1 Power 3 | 1 2 . Engine 3 | 1 2 . Core . | . . . Reactor . | . . . Propulsion 7 | 2 5 . Treads 6 | 2 4 . Leg . | . . . Wheel 1 | . 1 . Hover . | . . . Flight . | . . . Utility 8 | 3 4 1 Device 6 | 2 3 1 Storage 2 | 1 1 . Processor . | . . . Hackware . | . . . Protection . | . . . Artifact . | . . . Weapon 9 | 2 7 . Energy Gun 5 | 1 4 . Energy Cannon 2 | . 2 . Ballistic Gun 1 | 1 . . Ballistic Cannon . | . . . Launcher . | . . . Special Weapon 1 | . 1 . Impact Weapon . | . . . Slashing Weapon . | . . . Piercing Weapon . | . . . Special Melee Weapon . | . . . Unidentified Prototypes . | . . . Parts Lost 7 | . 6 1 Power 1 | . 1 . Propulsion 3 | . 2 1 Utility 1 | . 1 . Weapon 2 | . 2 . Highest Loss Streak 2 | . 2 1 To Critical Strikes . | . . . Average Backups 10 | 2 10 14 Power . | . 1 1 Propulsion 2 | . 2 2 Utility 4 | . 4 6 Weapon 3 | . 3 5 Tool/Special . | . . . Unused Backups 15 | . 4 11 Power 2 | . 1 1 Propulsion 1 | . . 1 Utility 4 | . . 4 Weapon 8 | . 3 5 Tool/Special . | . . . Average Slot Usage (%) 96 | . 95 100 Engine 11 | . 10 14 Treads 26 | . 25 28 Wheel 1 | . 2 . Device 13 | . 13 14 Storage 14 | . 14 14 Energy Gun 21 | . 18 28 Energy Cannon 3 | . 5 . Ballistic Gun 2 | . 3 . Peak Build Rating 14 | 7 12 14 Average Rating 8 | 5 8 11 On Entrance 6 | . 7 12 Avg Prop Armor Cover (%) 16 | . 16 . Naked Turns . | . . . Heaviest Build 34 | 12 34 34 Greatest Support 40 | 40 40 40 Greatest Overweight (x) 1 | . 1 . Average Overweight (x) . | . . . Largest Inventory Capacity 15 | 8 15 15 Average Capacity 13 | 7 13 15 Most Carried 15 | 4 15 15 Average Carried 10 | 2 10 14 Final Capacity 15 | 8 15 15 Final Carried 15 | 4 15 15 Class Distribution -------------------- 100% | Mutant Dominant Class ---------------- Mutant | -10/Materials Mutant | -10/Mines Resources | -11 -10 -10 ----------- Run | Yrd Mat Min Matter Collected 757 | 303 380 74 Remotely . | . . . Salvage Created 1303 | 257 887 159 Parts 86 | 23 52 11 Haulers Intercepted 2 | . 2 . Recyclers Shooed 2 | 1 1 . Parts Field Recycled . | . . . Retrieved Matter . | . . . Parts Self-Destructed . | . . . Prevented . | . . . Parts Restored . | . . . Kills | -11 -10 -10 ------- Run | Yrd Mat Min Combat Hostiles Destroyed 26 | . 18 8 Guns 23 | . 15 8 Cannons 3 | . 3 . Classes Destroyed 8 | 3 5 . Worker 2 | 1 1 . Builder 2 | . 2 . Tunneler 8 | 7 . 1 Hauler 2 | . 2 . Recycler 2 | 1 1 . Watcher 2 | . 2 . Swarmer 10 | . 3 7 Grunt 16 | . 15 1 Best Kill Streak 5 | 5 5 4 Combat Bots Only 4 | . 4 3 Max Kills in Single Turn 2 | 1 1 2 Gunslinging 1 | . . 1 Exploded . | . . . Melee . | . . . Uniques/NPCs Destroyed . | . . . Combat | -11 -10 -10 -------- Run | Yrd Mat Min Hostile Shots Fired 178 | . 129 49 Missed 41 | . 26 15 Hits 137 | . 103 34 Projectile 137 | . 103 34 Damage Taken 1393 | . 1116 277 Core 251 | . 183 68 Absorbed by Shields . | . . . Core Remaining (%) 100 | 100 . . Volleys Fired 127 | 23 82 22 Largest 2 | 2 2 2 Hottest 130 | 70 130 130 Shots Fired 250 | 46 160 44 Gun 224 | 46 134 44 Cannon 26 | . 26 . Launcher . | . . . Special . | . . . Kinetic 61 | 23 38 . Thermal 189 | 23 122 44 Explosive . | . . . Electromagnetic . | . . . Robot Hit Streak 10 | 10 7 7 Robot Miss Streak 10 | 3 3 10 Penetration Max . | . . . Secondary Targets 4 | . 3 1 Max Gunslinging Chain 1 | . 1 1 Shots Hit Robots 156 | 29 106 21 Core Hits 64 | 13 41 10 Critical Kills 1 | . 1 . Critical Parts Destroyed . | . . . Critical Strikes 5 | . 5 . Burn 4 | . 4 . Meltdown 1 | . 1 . Melee Attacks . | . . . Impact . | . . . Slashing . | . . . Piercing . | . . . Sneak Attacks . | . . . Combat Hostiles . | . . . Follow-up Attacks . | . . . Damage Inflicted 2082 | 305 1421 356 Guns 1719 | 305 1070 344 Cannons 333 | . 333 . Explosions . | . . . Melee . | . . . Ramming 30 | . 18 12 Kinetic 374 | 105 269 . Thermal 1678 | 200 1134 344 Explosive . | . . . Electromagnetic . | . . . Impact . | . . . Slashing . | . . . Piercing . | . . . Highest Corruption . | . . . Average Corruption . | . . . Corruption Purged . | . . . Corruption Blocked . | . . . Overload Shots . | . . . Overflow Damage . | . . . Projectiles . | . . . Explosions . | . . . Melee . | . . . Knockbacks . | . . . Impact . | . . . Kinetic . | . . . Secondary . | . . . Self-Inflicted Damage . | . . . Shots . | . . . Rammed 10 | . 9 1 Targets Rammed 11 | . 10 1 Kicked . | . . . Crushed 1 | . 1 . Highest Temperature 559 | 200 246 559 Average Temperature 108 | 74 82 209 Received Heat Transfer 546 | . 537 9 Effects 12 | . . 12 Shutdowns 2 | . . 2 Energy Bleed 1 | . . 1 Interference 4 | . . 4 Matter Decay 3 | . . 3 Damage (minor) 1 | . . 1 Damage (major) 1 | . . 1 Siege Activations . | . . . Martial Activations . | . . . Shielding Activations . | . . . Robots Disrupted . | . . . Combat Hostiles . | . . . Robots Corrupted . | . . . Combat Hostiles . | . . . Parts Fried . | . . . Impact Corruptions . | . . . Robots Melted 2 | . 2 . Combat Hostiles . | . . . Parts Melted 8 | 1 6 1 Heat Transferred 4662 | 592 3256 814 Parts Sabotaged . | . . . Parts Stolen . | . . . Parts Stripped . | . . . Power Chain Reactions . | . . . Alert | -11 -10 -10 ------- Run | Yrd Mat Min Maximum Alert Level . | . . . Low Security (%) 100 | 100 100 100 Level 1 . | . . . Level 2 . | . . . Level 3 . | . . . Level 4 . | . . . Level 5 . | . . . High Security . | . . . Max Security . | . . . Peak Influence 113 | 15 113 84 Initial 14 | . . 14 Average 33 | 3 45 20 Influence Increases 809 | 45 544 220 Destroy 0b10 Robot/C 520 | . 360 160 Destroy 0b10 Robot/NC 90 | 45 40 5 Destroy Leader 138 | . 98 40 Destroy Structure 1 | . 1 . Lose Combat Pursuer 60 | . 45 15 Influence Decreases 758 | 45 506 207 Entered New Map 24 | . . 24 Time Decay 664 | 45 446 173 Lost Part 70 | . 60 10 Squads Dispatched 5 | . 5 . Investigation 2 | . 2 . Extermination . | . . . Reinforcement 3 | . 3 . Assault . | . . . Garrison . | . . . Intercept . | . . . Searches Triggered . | . . . Construction Impeded . | . . . Haulers Reinforced . | . . . Active Scanning Responses . | . . . Cargo Convoy Interrupts . | . . . Stealth | -11 -10 -10 --------- Run | Yrd Mat Min Distress Signals 1 | . 1 . Communications Jammed . | . . . Distress Signals . | . . . Times Spotted 40 | . 30 10 Peak Tracking Total 6 | . 6 3 Tactical Retreats 2 | . 1 1 Traps | -11 -10 -10 ------- Run | Yrd Mat Min Traps Triggered 6 | . 6 . Indirectly . | . . . Trap Hack Attempts . | . . . Triggered . | . . . Disarmed . | . . . Reprogrammed . | . . . Reused . | . . . Traps Extracted . | . . . Installed . | . . . Triggered . | . . . Machines | -11 -10 -10 ---------- Run | Yrd Mat Min Machines Disabled . | . . . Max in Single Turn . | . . . Machines Repaired . | . . . Machines Dismantled . | . . . Machines Sabotaged . | . . . Overloaded Fab Kills . | . . . Hacking | -11 -10 -10 --------- Run | Yrd Mat Min Machines Accessed 2 | . 2 . Terminals . | . . . Fabricators . | . . . Repair Stations . | . . . Recycling Units 2 | . 2 . Scanalyzers . | . . . Garrison Access . | . . . Total Hacks 3 | . 3 . Successful 2 | . 2 . Failed 1 | . 1 . Catastrophic . | . . . Database Lockouts . | . . . Manual . | . . . Terminals . | . . . Fabricators . | . . . Repair Stations . | . . . Recycling Units 3 | . 3 . Scanalyzers . | . . . Garrison Access . | . . . Terminal Hacks . | . . . Fabricator Hacks . | . . . Repair Station Hacks . | . . . Recycling Unit Hacks 2 | . 2 . Retrieve Components 2 | . 2 . Scanalyzer . | . . . Garrison Access Hacks . | . . . Unauthorized Hacks . | . . . Terminals . | . . . Fabricators . | . . . Repair Stations . | . . . Recycling Units . | . . . Scanalyzers . | . . . Garrison Access . | . . . Data Cores Recovered . | . . . Used . | . . . Hacking Detections . | . . . Full Trace Events . | . . . Feedback Events . | . . . Feedback Blocked . | . . . Robot Schematics Acquired . | . . . Robots Built . | . . . Authchips . | . . . Time . | . . . Total Robot Build Rating . | . . . Part Schematics Acquired . | . . . Parts Built . | . . . Authchips . | . . . Time . | . . . Total Part Build Rating . | . . . Part Studies Acquired . | . . . Parts Repaired . | . . . Time . | . . . Parts Recycled . | . . . Recycled Matter . | . . . Retrieved Matter . | . . . Retrieved Components 16 | . 16 . Parts Scanalyzed . | . . . Part Schematics Acquired . | . . . Parts Damaged . | . . . Bothacking | -11 -10 -10 ------------ Run | Yrd Mat Min Used RIF Installer . | . . . Robots Hacked . | . . . Non-combat . | . . . Combat . | . . . Robot Hacks Applied . | . . . Relay Couplers Released . | . . . Fabnet Peak Effective % . | . . . Robots Rewired . | . . . Allies Hacked . | . . . Hacks Repelled . | . . . Allies | -11 -10 -10 -------- Run | Yrd Mat Min Total Allies . | . . . Largest Group . | . . . Highest-Rated Group . | . . . Highest-Rated Ally . | . . . Total Orders . | . . . Ally Attacks . | . . . Total Damage . | . . . Kills . | . . . Allies Corrupted . | . . . Allies Melted . | . . . Intel | -11 -10 -10 ------- Run | Yrd Mat Min Active Infowar (turns) 637 | 118 519 . Seismic 637 | 118 519 . Robot Analysis Total . | . . . Derelict Logs Recovered 1 | . . 1 Drone Launches . | . . . Drone Recoveries . | . . . Exploration | -11 -10 -10 ------------- Run | Yrd Mat Min Turns Passed 2089 | 240 1271 578 Spaces Moved 1023 | 84 626 313 Core 7 | 7 . . Treads 900 | 77 510 313 Legs . | . . . Wheels 116 | . 116 . Hover . | . . . Flight . | . . . Fastest Speed 50 | 50 100 160 Average Speed 153 | 150 150 160 Slowest Speed 240 | 160 240 160 Overloaded Moves . | . . . Propulsion Burnouts . | . . . Robots Hopped . | . . . Potential Cave-ins . | . . . Cave-ins Triggered . | . . . Exploration Rate (%) 59 | 6 83 89 Regions Visited 2 Branch Regions 1 Pre-discovered Areas 1 | . . 1 Known Exits Taken . | . . . Unknown Exits Taken 2 | 1 1 . Scrap Searched 1 | . . 1 Spaces Dug . | . . . Terrain Destroyed . | . . . Melee . | . . . Projectile . | . . . AOE . | . . . Terrain Rammed . | . . . Walls Destroyed . | . . . Machines Disabled . | . . . Actions | -11 -10 -10 --------- Run | Yrd Mat Min Total 1291 | 152 794 345 Wait 63 | 35 21 7 Move 1021 | 83 625 313 Hop . | . . . Pick Up 23 | 3 20 . Fast Attach 16 | 7 9 . Attach 7 | . 6 1 Detach . | . . . Swap 12 | 1 10 1 Drop 11 | . 11 . Fire 127 | 23 82 22 Melee . | . . . Ram . | . . . Kick . | . . . Crush 11 | . 10 1 Escape Stasis . | . . . Rewire . | . . . Trap . | . . . Miscellaneous . | . . . Route ------- -11/Scrapyard -10/Materials (discovered 4 exits: [*Mat x2] / [*Min] / [*Sub]) -10/Mines (discovered 3 exits: [*Mat x2] / [*Sub]) History --------- Turn | Location | Event 4 | -11/Scrapyard | Discovered new exit (range 15) 241 | -11/Scrapyard | Entered Materials 311 | -10/Materials | Build established: Mutant 706 | -10/Materials | Discovered new exit (range 15) 759 | -10/Materials | Core integrity fell below 50% 815 | -10/Materials | Discovered new exit (range 14) 927 | -10/Materials | Discovered new exit (range 11) 1374 | -10/Materials | Discovered new exit (range 10) 1512 | -10/Materials | Entered Mines 1739 | -10/Mines | Core integrity fell below 20% 1780 | -10/Mines | Discovered new exit (range 14) 1834 | -10/Mines | Discovered new exit (range 6) 1938 | -10/Mines | Discovered new exit (range 12) 1948 | -10/Mines | Deemed a non-threat by the Exiles lab entrance 2090 | -10/Mines | Destroyed by S-10 Pest with Light Assault Rifle Last Messages --------------- 01779_ K-01 Serf collects debris. 01780_ Power failure, Imp. Ion Engine shutdown. 01780_ EXIT=FOUND 01782_ K-01 Serf collects debris. 01786_ R-06 Scavenger collects Flight Unit. 01786_ K-01 Serf collects debris. 01790_ R-06 Scavenger collects Lgt. Assault Rifle. 01791_ K-01 Serf collects debris. 01794_ R-06 Scavenger collects Seismic Detector. 01795_ K-01 Serf collects debris. 01834_ EXIT=FOUND 01866_ Slammed into K-01 Serf. 01938_ EXIT=FOUND 01940_ Acquired derelict log, extracted data. World map updated: -8/Materials. 01948_ "No threat detected, you may enter." 02024_ Destroyed Lgt. Nuclear Core. 02024_ G-47 Trooper destroyed. 02030_ Acquired 54 matter. 02087_ S-10 Pest destroyed. Map ----- +----------------------------------------------------+ | ????# #### ######## #?####?? | | ????# #??????? #??????? | | ?????# #???????? #?????? | | ?????### ##???????? ???? | | ???????## ###?????????? #??? | | ???????## ##???????????? ??? | | ????#### ##?????????????? ??? | | ???## #???????????????# ??? | | ???# ##??????????????# #?? | | ???# ##?????????????# #?? | | ???## #???????####### ### | | ????# #???????# # | | ????# #???????# | | ????# ### ##???????# """ """ # | | ????# ##??###????????# """ """ # | | ????## #??????????????# """ """ # | | ?????# #???????###????# # | | ?????## ##?????# #????###### ##### | | ?????## ##???# #?????????# #???? | | ???### ##?# #?????????# #???? | | ??## ## #??????????# #???? | | ??# #???????#### ###?? | | ??# s #???????#% #?? | | ??## % ##???????#= % #?? | | ???#### s ###????????#% #?? | | ??????# ##@ ##??????????# #?? | | ??????# ######???????????# #?? | | ??????# #????????????????# #?? | | ??????# #????????????????########?? | | ?????? ?????????????????????????? | | ?????? ?????????????????????????? | | ?????# ?????????????????????????? | | ?????# ?????????????????????????? | | ?????# """?????????????????????????? | | ?????# """?????????????????????????? | | ?????# ????????????????????????????? | | ?????# ????????????????????????????? | | ?????#?????????????????????????????? | | ???????????????????????????????????? | | ???????????????????????????????????? | | ???????????????????????????????????? | | ???????????????????????????????????? | | ???????????????????????????????????? | | ???????????????????????????????????? | | | | | | | | | | | | | +----------------------------------------------------+ Best States ------------- Heat Dissipation 39 Energy Generation 12 Energy Capacity 265 Matter Stores 300 Matter Capacity 300 Sight Range 16 Terrain Scan Density 10 Evasion (%) 40 Recoil Reduction 2 Item Schematics ----------------- None Robot Schematics ------------------ None Fabricated ------------ Nothing Repaired ---------- Nothing Studied --------- None Alien Tech Used ----------------- None Achievements -------------- Well Done Challenges ------------ None Game ------ Seed MakeshiftSmartbombCyclogen Manual? 0 Play Time 00:11:00 Cumulative 16.2 hours Start 2025.11.02 @ 20:09:25 End 2025.11.03 @ 20:49:21 Sessions 10 Manual Loads 0 Difficulty Rogue Special Mode None Game No. 11 Rogue 11 Adventurer 0 Explorer 0 Win Type - Total 1 Types 0/1/0/0/0/0/0/0/0/0 Lore% 13 Gallery% 24 Achievement% 34 Wizard Run 0 Options --------- Layout 1 ASCII 0 Keyboard 0 Movement Arrows Keybinds 0 Fullscreen 2 Font 20/Terminus Map View 55x45 Zoom Use 0% Tactical HUD 1 Map Filters NONE Filters NONE Steam 0 RUN: 466f0c15-75ec-4ecb-b493-ad61a5570591